fUSD/lending_fUSD_20240818
["ID","MTS","AMOUNT","RATE_DAILY","PERIOD"]
[335239706,1724015548393,500.0,9.585e-05,2]
[335239707,1724015548736,500.0,9.11e-05,2]
[335239708,1724015550490,500.0,8.509e-05,2]
[335239709,1724015551535,500.0,9.358e-05,2]
[335239710,1724015605915,155.0,9.943e-05,2]
[335239711,1724015616757,155.0,9.943e-05,2]
[335239713,1724015640252,235.28,9.611e-05,2]
[335239714,1724015646842,-300.0,9.989e-05,2]
[335239715,1724015646867,-780.8,9.99e-05,2]
[335239716,1724015649146,150.0,0.000131,30]
[335239717,1724015656575,328.0,9.637e-05,2]
[335239718,1724015669308,716.2,8.219e-05,2]
[335239719,1724015706496,287.0503,9.888e-05,2]
[335239720,1724015715482,250.0,9.638e-05,2]
[335239721,1724015717111,155.0,9.943e-05,2]
[335239722,1724015728192,207.021857,9.962e-05,2]
[335239723,1724015835392,500.0,9.035e-05,2]
[335239724,1724015835429,500.0,8.461e-05,2]
[335239725,1724015835872,500.0,8.987e-05,2]
[335239726,1724015836042,1000.0,8.633e-05,2]
[335239727,1724015836494,1000.0,9.182e-05,2]
[335239728,1724015836986,1000.0,9.251e-05,2]
[335239729,1724015837469,1000.0,9.431e-05,2]
[335239730,1724015837917,1000.0,9.529e-05,2]
[335239731,1724015838425,1000.0,9.923e-05,2]
[335239732,1724015838521,500.0,9.938e-05,2]
[335239733,1724015838891,1000.0,9.93e-05,2]
[335239734,1724015840784,155.0,9.862e-05,2]
[335239735,1724015840854,608.31063457,9.658e-05,2]
[335239736,1724015844406,547.63984225,9.924e-05,2]
[335239737,1724015844744,500.44775331,8.529e-05,2]
[335239738,1724015845283,500.0,8.966e-05,2]
[335239739,1724015845584,500.0,8.951e-05,2]
[335239740,1724015845620,500.0,9.79e-05,2]
[335239741,1724015845773,500.0,9.364e-05,2]
[335239742,1724015845860,500.0,8.729e-05,2]
[335239743,1724015846058,500.0,9.098e-05,2]
[335239744,1724015846408,500.0,9.648e-05,2]
[335239745,1724015846535,500.0,9.469e-05,2]
[335239746,1724015847645,155.09925405,8.548e-05,2]
[335239747,1724015847962,500.0,8.475e-05,2]
[335239748,1724015848455,500.0,8.672e-05,2]
[335239749,1724015848790,500.0,8.939e-05,2]
[335239750,1724015848922,500.0,9.193e-05,2]
[335239751,1724015849306,500.0,8.966e-05,2]
[335239752,1724015849407,500.0,9.237e-05,2]
[335239754,1724016077028,229.66145693,9.943e-05,2]
[335239755,1724016136349,700.0,8.488e-05,2]
[335239756,1724016137484,700.0,8.608e-05,2]
[335239757,1724016137985,700.0,9.104e-05,2]
[335239758,1724016138486,700.0,9.379e-05,2]
[335239759,1724016138968,700.0,9.575e-05,2]
[335239760,1724016140078,500.0,9.159e-05,2]
[335239761,1724016140548,500.0,9.889e-05,2]
[335239762,1724016148612,500.0,9.59e-05,2]
[335239763,1724016150751,167.02727241,8.691e-05,2]
[335239764,1724016152523,500.0,8.87e-05,2]
[335239765,1724016154166,500.0,9.347e-05,2]
[335239766,1724016154747,500.0,9.779e-05,2]
[335239767,1724016156214,500.0,8.561e-05,2]
[335239768,1724016156716,500.0,9.117e-05,2]
[335239769,1724016157207,500.0,9.877e-05,2]
[335239770,1724016157693,500.0,9.897e-05,2]
[335239771,1724016158412,400.0,9.538e-05,2]
[335239772,1724016195472,737.6,9.334e-05,2]
[335239773,1724016198121,680.39,8.219e-05,2]
[335239774,1724016221893,264.6397361,9.943e-05,2]
[335239775,1724016255976,375.36915227,9.943e-05,2]
[335239777,1724016257799,330.24732685,9.943e-05,2]
[335239778,1724016304152,150.0,8.975e-05,2]
[335239779,1724016304486,150.0,9.973e-05,2]
[335239780,1724016312105,150.0,8.975e-05,2]
[335239781,1724016312430,150.0,9.047e-05,2]
[335239782,1724016312796,150.0,9.118e-05,2]
[335239783,1724016313136,150.0,9.189e-05,2]
[335239784,1724016313432,150.0,9.26e-05,2]
[335239785,1724016313786,150.0,9.332e-05,2]
[335239786,1724016314069,150.0,9.403e-05,2]
[335239787,1724016314408,150.0,9.474e-05,2]
[335239788,1724016314733,150.0,9.545e-05,2]
[335239789,1724016315053,150.0,9.616e-05,2]
[335239790,1724016315373,150.0,9.688e-05,2]
[335239791,1724016315693,150.0,9.759e-05,2]
[335239792,1724016316015,150.0,9.83e-05,2]
[335239793,1724016316329,150.0,9.901e-05,2]
[335239794,1724016316637,150.0,9.973e-05,2]
[335239796,1724016435234,600.0,8.949e-05,2]
[335239797,1724016435706,600.0,9.389e-05,2]
[335239798,1724016436179,600.0,9.461e-05,2]
[335239799,1724016436661,600.0,9.957e-05,2]
[335239800,1724016437788,500.0,8.74e-05,2]
[335239801,1724016438259,500.0,8.962e-05,2]
[335239802,1724016438717,500.0,9.643e-05,2]
[335239803,1724016439392,500.0,8.716e-05,2]
[335239804,1724016440209,500.0,9.013e-05,2]
[335239809,1724016447218,200.0,9.7e-05,3]
[335239810,1724016448831,500.0,9.536e-05,2]
[335239811,1724016449316,500.0,9.8e-05,3]
[335239812,1724016451504,500.0,9.339e-05,2]
[335239813,1724016451542,800.0,9.9e-05,3]
[335239814,1724016451741,500.0,8.866e-05,2]
[335239815,1724016452136,500.0,8.963e-05,2]
[335239816,1724016452218,500.0,9.095e-05,2]
[335239817,1724016488547,174.40773729,9.963e-05,2]
[335239832,1724016515822,200.0,9.963e-05,2]
[335239835,1724016532469,200.0,9.963e-05,2]
[335239841,1724016581144,9275.57361174,9.943e-05,2]
[335239851,1724016632089,-155.0,9.988e-05,2]
[335239852,1724016632099,-745.0,9.988e-05,2]
[335239853,1724016632150,-544.1217656,9.988e-05,2]
[335239854,1724016632159,-30.9282344,9.989e-05,2]
[335239855,1724016632171,-269.0717656,9.989e-05,2]
[335239856,1724016632180,-60.53701177,9.99e-05,2]
[335239857,1724016632219,200.0,9.397e-05,2]
[335239858,1724016632231,-684.18806692,9.99e-05,2]
[335239859,1724016632242,-312.02099594,9.99e-05,2]
[335239884,1724016638099,-177.92625904,9.988e-05,2]
[335239885,1724016638110,-7799.07374096,9.99e-05,2]
[335239886,1724016638143,-0.10167861,9.99e-05,2]
[335239887,1724016638433,-9601.74097587,9.99e-05,2]
[335239888,1724016638445,-5603.8218397,9.99e-05,2]
[335239893,1724016640298,-31588.44151668,9.99e-05,2]
[335239894,1724016640310,-5577.69796219,9.99e-05,2]
[335239895,1724016640322,-25099.01412285,9.99e-05,2]
[335239896,1724016640337,-4161.71901686,9.99e-05,2]
[335239897,1724016640364,-681.26488617,9.99e-05,2]
[335239898,1724016640480,-13253.22423378,9.99e-05,2]
[335239899,1724016640491,-9511.12059182,9.99e-05,2]
[335239900,1724016640544,-75046.48250958,9.99e-05,2]
[335239923,1724016643166,-643.71140223,9.99e-05,2]
[335239925,1724016643178,-20492.59590905,9.99e-05,2]
[335239927,1724016643189,-1289.41102724,9.99e-05,2]
[335239928,1724016643230,-613.09825755,9.99e-05,2]
[335239929,1724016643241,-293.75433028,9.99e-05,2]
[335239935,1724016644212,-10001.989951,9.99e-05,2]
[335239936,1724016644224,-1012.97035628,9.99e-05,2]
[335239937,1724016644235,-953.70061537,9.99e-05,2]
[335239938,1724016644246,-680.06549859,9.99e-05,2]
[335239939,1724016644266,-2865.81931308,9.99e-05,2]
[335239940,1724016644277,-1074.04393756,9.99e-05,2]
[335239945,1724016646129,-250.10479714,9.99e-05,2]
[335239946,1724016646247,-164381.00477989,9.99e-05,2]
[335239947,1724016646310,-815.6971792,9.99e-05,2]
[335239948,1724016646323,-611.7165479,9.99e-05,2]
[335239949,1724016646335,-431.885,9.99e-05,2]
[335239950,1724016646347,-12780.09052708,9.99e-05,2]
[335239951,1724016646371,-1523.78274965,9.99e-05,2]
[335239952,1724016703101,646.37,8.219e-05,2]
[335239953,1724016726307,183.7089299,9.943e-05,2]
[335239954,1724016735386,500.0,9.782e-05,2]
[335239955,1724016735605,500.0,8.777e-05,2]
[335239956,1724016735690,401.87591929,8.714e-05,2]
[335239957,1724016735717,98.12408071,8.714e-05,2]
[335239958,1724016736232,500.0,8.891e-05,2]
[335239959,1724016736737,500.0,9.062e-05,2]
[335239960,1724016737218,500.0,9.304e-05,2]
[335239961,1724016737729,500.0,9.814e-05,2]
[335239962,1724016738234,327.5548683,9.983e-05,2]
[335239963,1724016738263,172.4451317,9.983e-05,2]
[335239964,1724016744224,1074.67923523,9.943e-05,2]
[335239965,1724016744837,175.64106293,9.943e-05,2]
[335239966,1724016746408,182.16467262,9.987e-05,2]
[335239967,1724016765137,170.33256458,9.943e-05,2]
[335239968,1724016765931,155.11033428,9.943e-05,2]
[335239969,1724016776490,-150.0,9.988e-05,2]
[335239970,1724016776646,-5.1051597,9.988e-05,2]
[335239971,1724016776667,-144.8948403,9.988e-05,2]
[335239972,1724016776765,-10.1051597,9.988e-05,2]
[335239973,1724016776786,-139.8948403,9.988e-05,2]
[335239974,1724016778732,42.31971981,9.943e-05,2]
[335239975,1724016778760,113.04704972,9.943e-05,2]
[335239976,1724016838909,644.46872531,9.943e-05,2]
[335239977,1724016843354,320.77953073,9.943e-05,2]
[335239978,1724016848939,155.13312574,9.943e-05,2]
[335239979,1724016859930,310.36763444,9.559e-05,2]
[335239980,1724016859958,689.63236556,9.559e-05,2]
[335239981,1724016866586,160.42723486,9.943e-05,2]
[335239982,1724016868856,182.16467263,9.987e-05,2]
[335239984,1724016943721,450.0,9.553e-05,2]
[335239985,1724017035705,241.89591498,8.65e-05,2]
[335239986,1724017035735,235.69143755,8.65e-05,2]
[335239987,1724017035759,22.41264747,8.65e-05,2]
[335239988,1724017036712,500.0,9.203e-05,2]
[335239989,1724017037234,500.0,9.586e-05,2]
[335239990,1724017038956,500.0,8.965e-05,2]
[335239991,1724017052400,150.0,9.391e-05,2]
[335239992,1724017052421,150.0,9.391e-05,2]
[335239993,1724017052445,200.0,9.391e-05,2]
[335239994,1724017055977,150.0,9.047e-05,2]
[335239995,1724017055998,243.12863758,9.047e-05,2]
[335239996,1724017056022,106.87136242,9.047e-05,2]
[335239997,1724017056462,500.0,9.423e-05,2]
[335239998,1724017104519,150.0,9.943e-05,2]
[335239999,1724017104540,5.0,9.943e-05,2]
[335240000,1724017123557,200.0,9.623e-05,2]
[335240001,1724017128667,150.0,9.943e-05,2]
[335240002,1724017128687,5.318472,9.943e-05,2]
[335240003,1724017174774,614.05,8.219e-05,2]
[335240004,1724017238458,150.0,9.962e-05,2]
[335240005,1724017238478,150.0,9.962e-05,2]
[335240006,1724017238500,77.35855902,9.962e-05,2]
[335240007,1724017307221,155.0,9.943e-05,2]
[335240008,1724017322210,150.0,9.943e-05,2]
[335240009,1724017322235,5.0,9.943e-05,2]
[335240010,1724017327007,1443.13,9.604e-05,2]
[335240011,1724017336097,500.0,9.596e-05,2]
[335240012,1724017340793,150.0,9.868e-05,2]
[335240013,1724017340814,150.0,9.868e-05,2]
[335240014,1724017340834,150.0,9.868e-05,2]
[335240015,1724017340856,50.0,9.868e-05,2]
[335240016,1724017341752,100.0,9.624e-05,2]
[335240017,1724017341774,150.0,9.624e-05,2]
[335240018,1724017341796,150.0,9.624e-05,2]
[335240019,1724017341819,100.0,9.624e-05,2]
[335240020,1724017383630,200.0,9.606e-05,2]
[335240021,1724017482773,5000.0,0.00014,31]
[335240022,1724017505482,150.0,9.973e-05,2]
[335240023,1724017600921,150.0,9.9e-05,2]
[335240024,1724017600942,150.0,9.9e-05,2]
[335240025,1724017600962,150.0,9.9e-05,2]
[335240026,1724017600982,150.0,9.9e-05,2]
[335240027,1724017601004,150.0,9.9e-05,2]
[335240028,1724017601024,150.0,9.9e-05,2]
[335240029,1724017601044,150.0,9.9e-05,2]
[335240030,1724017601065,150.0,9.9e-05,2]
[335240031,1724017601086,275.24648864,9.9e-05,2]
[335240032,1724017601110,618688.17205463,9.9e-05,2]
[335240033,1724017604981,200.0,9.605e-05,2]
[335240038,1724017635127,500.53034285,9.887e-05,2]
[335240039,1724017635327,500.0,8.566e-05,2]
[335240040,1724017635863,500.0,9.233e-05,2]
[335240041,1724017645293,500.0,9.213e-05,2]
[335240042,1724017648073,500.0,8.519e-05,2]
[335240043,1724017649646,500.0,9.184e-05,2]
[335240044,1724017650143,500.0,9.444e-05,2]
[335240045,1724017681449,200.39904225,9.943e-05,2]
[335240046,1724017688276,1500.0,9.605e-05,2]
[335240047,1724017711462,612.88,8.219e-05,2]
[335240048,1724017721787,-3171.41402855,9.988e-05,2]
[335240049,1724017721846,-3171.41402855,9.988e-05,2]
[335240052,1724017721905,-2907.25551821,9.988e-05,2]
[335240073,1724017773263,174.11,9.562e-05,2]
[335240074,1724017824511,1408.92,9.592e-05,2]
[335240087,1724017832190,-300.0,9.989e-05,2]
[335240088,1724017832201,-403.37788318,9.99e-05,2]
[335240089,1724017832213,-7871.96110263,9.99e-05,2]
[335240091,1724017832225,-2613.10872722,9.99e-05,2]
[335240092,1724017832237,-792.5901174,9.99e-05,2]
[335240093,1724017832249,-238440.58668859,9.99e-05,2]
[335240094,1724017832260,-542.67878054,9.99e-05,2]
[335240095,1724017832301,-29776.2358718,9.99e-05,2]
[335240096,1724017832363,-609.67999998,9.99e-05,2]
[335240097,1724017832378,-598.97184433,9.99e-05,2]
[335240098,1724017832389,-4118.47040795,9.99e-05,2]
[335240099,1724017832400,-436.77321946,9.99e-05,2]
[335240100,1724017832424,-1570.52069261,9.99e-05,2]
[335240101,1724017832435,-340.78735789,9.99e-05,2]
[335240102,1724017832448,-4331.00394164,9.99e-05,2]
[335240103,1724017832459,-436.06621227,9.99e-05,2]
[335240104,1724017832470,-540.58967437,9.99e-05,2]
[335240105,1724017832481,-1974.8225,9.99e-05,2]
[335240106,1724017832491,-876.11960137,9.99e-05,2]
[335240107,1724017832503,-727.39559761,9.99e-05,2]
[335240109,1724017838320,-1442.84281182,9.988e-05,2]
[335240110,1724017838510,-1287.56073536,9.99e-05,2]
[335240122,1724017838980,-25299.15984209,9.99e-05,2]
[335240123,1724017839315,-5323.79190021,9.99e-05,2]
[335240124,1724017839328,-1208.98602761,9.99e-05,2]
[335240125,1724017839347,-11291.99679093,9.99e-05,2]
[335240129,1724017840401,-1396.69046004,9.99e-05,2]
[335240130,1724017840571,-23501.74223655,9.99e-05,2]
[335240131,1724017840728,-2430.53542353,9.99e-05,2]
[335240132,1724017840742,-644.10641409,9.99e-05,2]
[335240133,1724017840754,-3291.39065368,9.99e-05,2]
[335240134,1724017840766,-8390.94712161,9.99e-05,2]
[335240135,1724017840778,-1753.74598499,9.99e-05,2]
[335240136,1724017840792,-618.84861096,9.99e-05,2]
[335240137,1724017840805,-205028.33458789,9.99e-05,2]
[335240138,1724017840817,-2409.35153101,9.99e-05,2]
[335240139,1724017840835,-1367.59375518,9.99e-05,2]
[335240140,1724017840863,-547.42174038,9.99e-05,2]
[335240141,1724017840873,-466.39019617,9.99e-05,2]
[335240142,1724017840884,-1092.27862809,9.99e-05,2]
[335240143,1724017840895,-891.51412651,9.99e-05,2]
[335240144,1724017840908,-2444.2183684,9.99e-05,2]
[335240145,1724017840919,-392.85540526,9.99e-05,2]
[335240147,1724017840932,-1225.9364753,9.99e-05,2]
[335240149,1724017840944,-1548.34307602,9.99e-05,2]
[335240151,1724017840956,-509.73860691,9.99e-05,2]
[335240153,1724017840968,-649.02,9.99e-05,2]
[335240181,1724017843284,-478.6711612,9.99e-05,2]
[335240182,1724017843295,-3401.48620004,9.99e-05,2]
[335240183,1724017843306,-869.95370905,9.99e-05,2]
[335240185,1724017843345,-627.59413878,9.99e-05,2]
[335240186,1724017844451,-2425.04959483,9.99e-05,2]
[335240187,1724017844467,-1968.40098272,9.99e-05,2]
[335240188,1724017844482,-778.84,9.99e-05,2]
[335240189,1724017844494,-800.90047991,9.99e-05,2]
[335240192,1724017846306,-363.90431432,9.99e-05,2]
[335240193,1724017846318,-2836.5862804,9.99e-05,2]
[335240194,1724017846426,-2000.0,9.99e-05,2]
[335240195,1724017846437,-413687.34810716,9.99e-05,2]
[335240196,1724017846451,-273.72011597,9.99e-05,2]
[335240197,1724017846463,-417.47216,9.99e-05,2]
[335240198,1724017846474,-3570.01645347,9.99e-05,2]
[335240199,1724017846484,-612.67,9.99e-05,2]
[335240200,1724017846496,-281.00881241,9.99e-05,2]
[335240201,1724017846507,-2990.50036596,9.99e-05,2]
[335240202,1724017846518,-2736.68052682,9.99e-05,2]
[335240203,1724017846530,-413.1192,9.99e-05,2]
[335240204,1724017846554,-307.982,9.99e-05,2]
[335240205,1724017846566,-10926.63958328,9.99e-05,2]
[335240206,1724017859998,400.0,9.9e-05,3]
[335240207,1724017875759,150.0,9.89e-05,2]
[335240208,1724017884797,157.95458,9.89e-05,2]
[335240209,1724017935955,500.0,8.823e-05,2]
[335240210,1724017936424,500.0,9.405e-05,2]
[335240211,1724017938892,500.0,9.858e-05,2]
[335240212,1724017942199,500.0,9.611e-05,2]
[335240213,1724017947015,30965.1208,9.89e-05,2]
[335240214,1724017967103,1000.0,9.89e-05,2]
[335240215,1724017968167,192.71,9.579e-05,2]
[335240216,1724017972597,347.853,9.89e-05,2]
[335240217,1724017973783,840.0,9.575e-05,2]
[335240218,1724017979618,358.97,9.89e-05,2]
[335240219,1724018005025,893.27357362,9.943e-05,2]
[335240220,1724018009230,217.17304257,9.943e-05,2]
[335240221,1724018016302,155.39113803,9.943e-05,2]
[335240222,1724018019359,419.23699242,9.943e-05,2]
[335240223,1724018044335,203.05465569,9.943e-05,2]
[335240224,1724018058941,155.0,9.943e-05,2]
[335240225,1724018088203,8703.7603,9.89e-05,2]
[335240226,1724018095512,2500.08944524,9.943e-05,2]
[335240227,1724018140858,250.0,9.645e-05,2]
[335240228,1724018146651,919.78,9.629e-05,2]
[335240229,1724018161720,360.0,9.625e-05,2]
[335240230,1724018173261,3939.36827943,9.943e-05,2]
[335240231,1724018239970,500.0,8.714e-05,2]
[335240232,1724018240471,500.0,8.884e-05,2]
[335240233,1724018241485,500.0,9.151e-05,2]
[335240234,1724018241998,500.0,9.242e-05,2]
[335240235,1724018242470,500.0,9.524e-05,2]
[335240236,1724018246548,633.1,8.219e-05,2]
[335240237,1724018272096,2852.9344,9.89e-05,2]
[335240238,1724018296758,938.4516,9.89e-05,2]
[335240239,1724018320339,5677.33,9.725e-05,2]
[335240240,1724018358313,238.95,9.627e-05,2]
[335240241,1724018444348,328.0,9.609e-05,2]
[335240242,1724018493330,4958.6828,9.89e-05,2]
[335240245,1724018510598,155.0,9.943e-05,2]
[335240246,1724018526349,636329.47442368,9.8e-05,2]
[335240247,1724018526376,184044.75251174,9.8e-05,2]
[335240248,1724018539725,150.0,9.808e-05,2]
[335240249,1724018539748,150.0,9.808e-05,2]
[335240250,1724018539774,150.0,9.808e-05,2]
[335240251,1724018539798,50.0,9.808e-05,2]
[335240252,1724018540200,150.0,9.81e-05,2]
[335240253,1724018540224,150.0,9.81e-05,2]
[335240254,1724018540246,150.0,9.81e-05,2]
[335240255,1724018540269,50.0,9.81e-05,2]
[335240256,1724018556046,150.0,9.9e-05,2]
[335240257,1724018556068,150.0,9.9e-05,2]
[335240258,1724018556091,150.0,9.9e-05,2]
[335240259,1724018556113,150.0,9.9e-05,2]
[335240260,1724018556134,150.0,9.9e-05,2]
[335240261,1724018556154,150.0,9.9e-05,2]
[335240262,1724018556174,150.0,9.9e-05,2]
[335240263,1724018556195,150.0,9.9e-05,2]
[335240264,1724018556216,150.0,9.9e-05,2]
[335240265,1724018556237,150.0,9.9e-05,2]
[335240266,1724018556258,150.0,9.9e-05,2]
[335240267,1724018556280,194.00679974,9.9e-05,2]
[335240268,1724018556303,110592.08372441,9.9e-05,2]
[335240269,1724018556328,200891.99779113,9.9e-05,2]
[335240270,1724018556357,682523.06597967,9.9e-05,2]
[335240271,1724018622153,186.66,9.604e-05,2]
[335240272,1724018658231,1050.0,9.597e-05,2]
[335240274,1724018716353,150.0,9.764e-05,2]
[335240285,1724018750107,657.08,8.219e-05,2]
[335240286,1724018843942,150.0,9.458e-05,2]
[335240287,1724018843966,150.0,9.458e-05,2]
[335240288,1724018843987,150.0,9.458e-05,2]
[335240289,1724018844008,50.0,9.458e-05,2]
[335240292,1724018871797,150.0,9.899e-05,2]
[335240293,1724018871817,5.0,9.899e-05,2]
[335240296,1724018929987,292.54951502,9.5e-05,2]
[335240297,1724018930011,1607.45048498,9.5e-05,2]
[335240298,1724018934258,150.0,9.571e-05,2]
[335240299,1724018934287,150.0,9.571e-05,2]
[335240300,1724018934315,150.0,9.571e-05,2]
[335240301,1724018934336,150.0,9.571e-05,2]
[335240302,1724018934358,137.6,9.571e-05,2]
[335240304,1724018947268,-155.0,9.91e-05,2]
[335240305,1724018947297,-155.0,9.91e-05,2]
[335240306,1724018947325,-200.0,9.963e-05,2]
[335240307,1724018947356,-173.55877246,9.981e-05,2]
[335240308,1724018947384,-300.0,9.981e-05,2]
[335240309,1724018947414,-2253.55448131,9.981e-05,2]
[335240310,1724018947467,-2036.78459227,9.981e-05,2]
[335240311,1724018972584,-1372.12452925,9.981e-05,2]
[335240312,1724018972614,-1970.46668145,9.982e-05,2]
[335240313,1724018972665,-1579.20170843,9.982e-05,2]
[335240314,1724018997496,-3441.02706908,9.982e-05,2]
[335240315,1724018997549,-1173.15158681,9.982e-05,2]
[335240316,1724018997986,-150.0,9.982e-05,2]
[335240317,1724018998196,-150.0,9.982e-05,2]
[335240318,1724018998258,-150.0,9.982e-05,2]
[335240319,1724018998377,-150.0,9.982e-05,2]
[335240320,1724018998438,-150.0,9.982e-05,2]
[335240321,1724018998507,-150.0,9.982e-05,2]
[335240322,1724018998571,-150.0,9.982e-05,2]
[335240323,1724018998623,-150.0,9.982e-05,2]
[335240324,1724018998670,-150.0,9.982e-05,2]
[335240325,1724018998714,-150.0,9.982e-05,2]
[335240326,1724018998755,-150.0,9.982e-05,2]
[335240327,1724018998822,-150.0,9.982e-05,2]
[335240328,1724018998871,-162.4,9.982e-05,2]
[335240329,1724018998944,-150.0,9.982e-05,2]
[335240330,1724018998988,-150.0,9.982e-05,2]
[335240331,1724018999045,-150.0,9.982e-05,2]
[335240332,1724018999106,-150.0,9.982e-05,2]
[335240333,1724018999156,-150.0,9.982e-05,2]
[335240334,1724018999217,-150.0,9.982e-05,2]
[335240335,1724019006760,150.0,9.566e-05,2]
[335240336,1724019006781,63.2,9.566e-05,2]
[335240347,1724019031440,-300.0,9.981e-05,2]
[335240350,1724019031449,-2583.21346343,9.982e-05,2]
[335240357,1724019031544,-545.57867059,9.982e-05,2]
[335240358,1724019031556,-10130.5353258,9.982e-05,2]
[335240359,1724019031642,-440.46604856,9.982e-05,2]
[335240360,1724019031785,-3834.18185265,9.982e-05,2]
[335240361,1724019031851,-262.46590742,9.982e-05,2]
[335240362,1724019031867,-340.28165674,9.982e-05,2]
[335240363,1724019031878,-32067.9268774,9.982e-05,2]
[335240364,1724019031890,-655.60712406,9.982e-05,2]
[335240365,1724019031901,-4995.09547225,9.982e-05,2]
[335240369,1724019034496,150.0,9.646e-05,2]
[335240370,1724019037498,-2655.32256002,9.982e-05,2]
[335240371,1724019037518,-514.74031448,9.982e-05,2]
[335240372,1724019037538,-428.61941707,9.982e-05,2]
[335240373,1724019037632,-7457.2856901,9.982e-05,2]
[335240374,1724019037643,-1542.82135326,9.982e-05,2]
[335240375,1724019037734,-90519.6112204,9.982e-05,2]
[335240376,1724019037744,-6753.5800776,9.983e-05,2]
[335240377,1724019037753,-152.31108171,9.989e-05,2]
[335240378,1724019037763,-497372.75438458,9.99e-05,2]
[335240379,1724019037772,-499.99,9.997e-05,2]
[335240380,1724019037781,-657.73503838,9.997e-05,2]
[335240381,1724019037790,-1739.57017204,9.999e-05,2]
[335240382,1724019037799,-365.95663761,9.999e-05,2]
[335240383,1724019037808,-649.86351287,9.999e-05,2]
[335240384,1724019037818,-158.24348016,9.999e-05,2]
[335240385,1724019037828,-155.0,0.0001,2]
[335240386,1724019037838,-211.1434253,0.0001,2]
[335240387,1724019037850,-3978.80981577,0.0001,2]
[335240388,1724019037860,-189.95364887,0.0001,2]
[335240389,1724019037869,-471.41421915,0.0001,2]
[335240390,1724019037879,-17194.0,0.0001,2]
[335240391,1724019037891,-155.0,0.0001,2]
[335240392,1724019037900,-550.0,0.0001,2]
[335240393,1724019037910,-807.96310011,0.0001,2]
[335240394,1724019037921,-199.99,0.0001,2]
[335240395,1724019037931,-199.99,0.0001,2]
[335240396,1724019037940,-199.99,0.0001,2]
[335240398,1724019037950,-199.99,0.0001,2]
[335240400,1724019037959,-199.99,0.0001,2]
[335240402,1724019037969,-199.99,0.0001,2]
[335240403,1724019037978,-199.99,0.0001,2]
[335240405,1724019037988,-199.99,0.0001,2]
[335240407,1724019037998,-199.99,0.0001,2]
[335240408,1724019038007,-199.99,0.0001,2]
[335240409,1724019038020,-199.99,0.0001,2]
[335240410,1724019038029,-199.99,0.0001,2]
[335240411,1724019038039,-199.99,0.0001,2]
[335240412,1724019038048,-199.99,0.0001,2]
[335240413,1724019038058,-199.99,0.0001,2]
[335240414,1724019038067,-199.99,0.0001,2]
[335240415,1724019038076,-199.99,0.0001,2]
[335240416,1724019038089,-199.99,0.0001,2]
[335240417,1724019038099,-199.99,0.0001,2]
[335240418,1724019038108,-199.99,0.0001,2]
[335240419,1724019038118,-199.99,0.0001,2]
[335240420,1724019038127,-199.99,0.0001,2]
[335240421,1724019038136,-199.99,0.0001,2]
[335240422,1724019038146,-199.99,0.0001,2]
[335240423,1724019038155,-199.99,0.0001,2]
[335240424,1724019038164,-199.99,0.0001,2]
[335240425,1724019038174,-199.99,0.0001,2]
[335240426,1724019038184,-199.99,0.0001,2]
[335240427,1724019038193,-199.99,0.0001,2]
[335240428,1724019038202,-199.99,0.0001,2]
[335240429,1724019038211,-199.99,0.0001,2]
[335240430,1724019038220,-199.99,0.0001,2]
[335240431,1724019038229,-199.99,0.0001,2]
[335240432,1724019038239,-199.99,0.0001,2]
[335240433,1724019038248,-199.99,0.0001,2]
[335240434,1724019038257,-199.99,0.0001,2]
[335240435,1724019038266,-199.99,0.0001,2]
[335240436,1724019038275,-199.99,0.0001,2]
[335240437,1724019038285,-199.99,0.0001,2]